fUSD/lending_fUSD_20240301
["ID","MTS","AMOUNT","RATE_DAILY","PERIOD"]
[315962777,1709305847861,-500.0,0.00021917,2]
[315962779,1709305847873,-517.22700098,0.00021917,2]
[315962781,1709305847884,-500.0,0.00021917,2]
[315962783,1709305847894,-504.95756832,0.00021917,2]
[315962785,1709305847904,-500.0,0.00021917,2]
[315962786,1709305847914,-500.0,0.00021917,2]
[315962788,1709305847923,-500.0,0.00021917,2]
[315962790,1709305847933,-500.0,0.00021917,2]
[315962792,1709305847943,-500.0,0.00021917,2]
[315962795,1709305847953,-500.0,0.00021917,2]
[315962797,1709305847962,-500.0,0.00021917,2]
[315962799,1709305847972,-500.0,0.00021917,2]
[315962807,1709305848045,-788.32,0.00021917,2]
[315962809,1709305848055,-544.82,0.00021917,2]
[315962811,1709305848064,-500.0,0.00021917,2]
[315962813,1709305848073,-500.0,0.00021917,2]
[315962815,1709305848082,-500.0,0.00021917,2]
[315962817,1709305848091,-500.0,0.00021917,2]
[315962819,1709305848100,-500.0,0.00021917,2]
[315962821,1709305848110,-500.0,0.00021917,2]
[315962823,1709305848119,-500.0,0.00021917,2]
[315962825,1709305848129,-500.0,0.00021917,2]
[315962827,1709305848139,-500.0,0.00021917,2]
[315962829,1709305848149,-500.0,0.00021917,2]
[315962831,1709305848159,-731.75,0.00021917,2]
[315962833,1709305848169,-500.0,0.00021917,2]
[315962835,1709305848178,-191.77049233,0.00021917,2]
[315962837,1709305848188,-500.0,0.00021917,2]
[315962839,1709305848198,-500.0,0.00021917,2]
[315962841,1709305848207,-500.0,0.00021917,2]
[315962843,1709305848216,-500.0,0.00021917,2]
[315962845,1709305848225,-500.0,0.00021917,2]
[315962847,1709305848236,-500.0,0.00021917,2]
[315962849,1709305848245,-500.0,0.00021917,2]
[315962851,1709305848255,-500.0,0.00021917,2]
[315962853,1709305848263,-500.0,0.00021917,2]
[315962855,1709305848273,-500.0,0.00021917,2]
[315962857,1709305848283,-500.0,0.00021917,2]
[315962859,1709305848292,-500.0,0.00021917,2]
[315962861,1709305848301,-500.0,0.00021917,2]
[315962863,1709305848310,-500.0,0.00021917,2]
[315962865,1709305848319,-500.0,0.00021917,2]
[315962867,1709305848330,-500.0,0.00021917,2]
[315962869,1709305848339,-619.66,0.00021917,2]
[315962871,1709305848349,-587.02914076,0.00021917,2]
[315962873,1709305848359,-500.0,0.00021917,2]
[315962874,1709305848370,-500.0,0.00021917,2]
[315962875,1709305848380,-500.0,0.00021917,2]
[315962876,1709305848390,-500.0,0.00021917,2]
[315962877,1709305848400,-500.0,0.00021917,2]
[315962878,1709305848410,-989.93,0.00021917,2]
[315962879,1709305848420,-528.92938291,0.00021917,2]
[315962880,1709305848429,-500.0,0.00021917,2]
[315962881,1709305848439,-500.0,0.00021917,2]
[315962883,1709305848449,-500.0,0.00021917,2]
[315962885,1709305848459,-500.0,0.00021917,2]
[315962887,1709305848469,-500.0,0.00021917,2]
[315962889,1709305848479,-1062.73,0.00021917,2]
[315962891,1709305848492,-500.0,0.00021917,2]
[315962893,1709305848501,-500.0,0.00021917,2]
[315962895,1709305848510,-500.0,0.00021917,2]
[315962897,1709305848521,-823.27,0.00021917,2]
[315962899,1709305848530,-500.0,0.00021917,2]
[315962901,1709305848539,-500.0,0.00021917,2]
[315962903,1709305848549,-500.0,0.00021917,2]
[315962906,1709305848558,-500.0,0.00021917,2]
[315962907,1709305848568,-500.0,0.00021917,2]
[315962910,1709305848578,-500.0,0.00021917,2]
[315962912,1709305848587,-500.0,0.00021917,2]
[315962913,1709305848596,-500.0,0.00021917,2]
[315962915,1709305848605,-500.0,0.00021917,2]
[315962917,1709305848614,-500.0,0.00021917,2]
[315962919,1709305848623,-500.0,0.00021917,2]
[315962921,1709305848632,-500.0,0.00021917,2]
[315962923,1709305848641,-511.46020629,0.00021917,2]
[315962925,1709305848651,-500.0,0.00021917,2]
[315962927,1709305848660,-500.0,0.00021917,2]
[315962929,1709305848669,-500.0,0.00021917,2]
[315962931,1709305848679,-500.0,0.00021917,2]
[315962933,1709305848688,-500.0,0.00021917,2]
[315962935,1709305848698,-500.0,0.00021917,2]
[315962937,1709305848708,-500.0,0.00021917,2]
[315962939,1709305848717,-500.0,0.00021917,2]
[315962941,1709305848726,-500.0,0.00021917,2]
[315962943,1709305848736,-500.0,0.00021917,2]
[315962945,1709305848746,-791.01,0.00021917,2]
[315962947,1709305848755,-500.0,0.00021917,2]
[315962949,1709305848764,-500.0,0.00021917,2]
[315962951,1709305848774,-500.0,0.00021917,2]
[315962953,1709305848783,-500.0,0.00021917,2]
[315962955,1709305848792,-500.0,0.00021917,2]
[315962957,1709305848801,-1594.75,0.00021917,2]
[315962959,1709305848810,-500.0,0.00021917,2]
[315962961,1709305848819,-500.0,0.00021917,2]
[315962963,1709305848828,-500.0,0.00021917,2]
[315962965,1709305848837,-500.0,0.00021917,2]
[315962967,1709305848847,-500.0,0.00021917,2]
[315962969,1709305848856,-500.0,0.00021917,2]
[315962971,1709305848865,-500.0,0.00021917,2]
[315962973,1709305848874,-505.03,0.00021917,2]
[315962975,1709305848883,-500.0,0.00021917,2]
[315962977,1709305848893,-500.0,0.00021917,2]
[315962979,1709305848903,-747.13,0.00021917,2]
[315962981,1709305848916,-534.78,0.00021917,2]
[315962983,1709305848925,-500.0,0.00021917,2]
[315962985,1709305848934,-500.0,0.00021917,2]
[315962987,1709305848943,-1220.65,0.00021917,2]
[315962989,1709305848953,-740.01,0.00021917,2]
[315962991,1709305848962,-500.0,0.00021917,2]
[315962993,1709305848972,-1099.67,0.00021917,2]
[315962995,1709305848981,-500.0,0.00021917,2]
[315962996,1709305848992,-500.0,0.00021917,2]
[315962998,1709305849001,-500.0,0.00021917,2]
[315963000,1709305849010,-500.0,0.00021917,2]
[315963002,1709305849019,-500.0,0.00021917,2]
[315963004,1709305849028,-674.07,0.00021917,2]
[315963006,1709305849037,-500.0,0.00021917,2]
[315963008,1709305849047,-500.0,0.00021917,2]
[315963010,1709305849056,-500.0,0.00021917,2]
[315963012,1709305849066,-5580.51,0.00021917,2]
[315963014,1709305849076,-500.0,0.00021917,2]
[315963016,1709305849086,-500.0,0.00021917,2]
[315963018,1709305849095,-500.0,0.00021917,2]
[315963020,1709305849106,-5289.69,0.00021917,2]
[315963022,1709305849115,-4403.01,0.00021917,2]
[315963024,1709305849124,-681.13,0.00021917,2]
[315963026,1709305849134,-1257.15,0.00021917,2]
[315963029,1709305849151,-500.0,0.00021917,2]
[315963030,1709305849160,-500.0,0.00021917,2]
[315963032,1709305849174,-520.69849837,0.00021917,2]
[315963034,1709305849183,-857.05,0.00021917,2]
[315963037,1709305849193,-590.84,0.00021917,2]
[315963039,1709305849201,-1083.41,0.00021917,2]
[315963040,1709305849211,-755.22,0.00021917,2]
[315963042,1709305849221,-500.0,0.00021917,2]
[315963045,1709305849231,-500.0,0.00021917,2]
[315963047,1709305849242,-500.0,0.00021917,2]
[315963048,1709305849252,-500.0,0.00021917,2]
[315963051,1709305849261,-500.0,0.00021917,2]
[315963052,1709305849270,-500.0,0.00021917,2]
[315963054,1709305849280,-1214.42,0.00021917,2]
[315963056,1709305849289,-500.0,0.00021917,2]
[315963058,1709305849298,-500.0,0.00021917,2]
[315963060,1709305849307,-3690.87,0.00021917,2]
[315963062,1709305849317,-1351.2,0.00021917,2]
[315963064,1709305849326,-500.0,0.00021917,2]
[315963066,1709305849340,-500.0,0.00021917,2]
[315963068,1709305849350,-3371.79,0.00021917,2]
[315963070,1709305849359,-803.59,0.00021917,2]
[315963072,1709305849368,-646.81,0.00021917,2]
[315963074,1709305849379,-500.0,0.00021917,2]
[315963076,1709305849389,-500.0,0.00021917,2]
[315963078,1709305849398,-500.0,0.00021917,2]
[315963080,1709305849408,-500.0,0.00021917,2]
[315963082,1709305849418,-726.61,0.00021917,2]
[315963084,1709305849428,-727.86,0.00021917,2]
[315963086,1709305849438,-500.0,0.00021917,2]
[315963089,1709305849448,-500.0,0.00021917,2]
[315963091,1709305849458,-2141.73,0.00021917,2]
[315963092,1709305849468,-500.0,0.00021917,2]
[315963094,1709305849478,-500.0,0.00021917,2]
[315963096,1709305849490,-559.99,0.00021917,2]
[315963098,1709305849500,-500.0,0.00021917,2]
[315963100,1709305849511,-1036.68,0.00021917,2]
[315963102,1709305849520,-2298.42,0.00021917,2]
[315963104,1709305849531,-500.0,0.00021917,2]
[315963106,1709305849541,-500.0,0.00021917,2]
[315963108,1709305849550,-500.0,0.00021917,2]
[315963110,1709305849560,-500.0,0.00021917,2]
[315963112,1709305849570,-1315.55,0.00021917,2]
[315963114,1709305849580,-500.0,0.00021917,2]
[315963116,1709305849590,-500.0,0.00021917,2]
[315963117,1709305849601,-895.66,0.00021917,2]
[315963118,1709305849610,-500.0,0.00021917,2]
[315963119,1709305849620,-500.0,0.00021917,2]
[315963120,1709305849629,-500.0,0.00021917,2]
[315963121,1709305849638,-870.51,0.00021917,2]
[315963122,1709305849649,-500.0,0.00021917,2]
[315963123,1709305849659,-693.44,0.00021917,2]
[315963124,1709305849670,-500.0,0.00021917,2]
[315963125,1709305849680,-735.48,0.00021917,2]
[315963126,1709305849690,-500.0,0.00021917,2]
[315963127,1709305849700,-500.0,0.00021917,2]
[315963128,1709305849710,-5334.59,0.00021917,2]
[315963130,1709305849720,-340.68472439,0.00021917,2]
[315963132,1709305849730,-881.39,0.00021917,2]
[315963133,1709305849745,-1134.58,0.00021917,2]
[315963134,1709305849755,-500.0,0.00021917,2]
[315963135,1709305849765,-500.0,0.00021917,2]
[315963136,1709305849775,-1102.85,0.00021917,2]
[315963137,1709305849785,-500.0,0.00021917,2]
[315963138,1709305849794,-500.0,0.00021917,2]
[315963139,1709305849805,-500.0,0.00021917,2]
[315963140,1709305849814,-772.72,0.00021917,2]
[315963141,1709305849824,-3217.72,0.00021917,2]
[315963142,1709305849834,-674.03,0.00021917,2]
[315963143,1709305849844,-734.83,0.00021917,2]
[315963144,1709305849854,-500.0,0.00021917,2]
[315963145,1709305849864,-4071.64,0.00021917,2]
[315963146,1709305849873,-500.0,0.00021917,2]
[315963147,1709305849882,-500.0,0.00021917,2]
[315963148,1709305849892,-500.0,0.00021917,2]
[315963149,1709305849901,-1336.48,0.00021917,2]
[315963150,1709305849910,-500.0,0.00021917,2]
[315963151,1709305849920,-6633.72,0.00021917,2]
[315963152,1709305849930,-2034.0,0.00021917,2]
[315963153,1709305849939,-500.0,0.00021917,2]
[315963154,1709305849950,-500.0,0.00021917,2]
[315963155,1709305849960,-653.13,0.00021917,2]
[315963156,1709305849969,-500.0,0.00021917,2]
[315963157,1709305849979,-511.66575396,0.00021917,2]
[315963158,1709305849991,-1007.25,0.00021917,2]
[315963159,1709305850001,-1199.02,0.00021917,2]
[315963160,1709305850011,-500.0,0.00021917,2]
[315963161,1709305850020,-1531.1,0.00021917,2]
[315963162,1709305850030,-500.0,0.00021917,2]
[315963163,1709305850040,-500.0,0.00021917,2]
[315963164,1709305850049,-1053.76,0.00021917,2]
[315963165,1709305850059,-500.0,0.00021917,2]
[315963166,1709305850068,-180.44525748,0.00021917,2]
[315963167,1709305850078,-880.94,0.00021917,2]
[315963168,1709305850091,-7052.62,0.00021917,2]
[315963169,1709305850101,-793.6,0.00021917,2]
[315963170,1709305850111,-500.0,0.00021917,2]
[315963171,1709305850126,-500.0,0.00021917,2]
[315963172,1709305850135,-500.0,0.00021917,2]
[315963173,1709305850149,-4970.95,0.00021917,2]
[315963174,1709305850159,-574.03036792,0.00021917,2]
[315963175,1709305850169,-500.0,0.00021917,2]
[315963176,1709305850179,-500.0,0.00021917,2]
[315963177,1709305850190,-1301.46,0.00021917,2]
[315963178,1709305850199,-500.0,0.00021917,2]
[315963179,1709305850210,-567.08,0.00021917,2]
[315963180,1709305850220,-500.0,0.00021917,2]
[315963181,1709305850229,-1404.44,0.00021917,2]
[315963182,1709305850240,-500.0,0.00021917,2]
[315963183,1709305850250,-1716.84,0.00021917,2]
[315963184,1709305850260,-632.56,0.00021917,2]
[315963185,1709305850269,-500.0,0.00021917,2]
[315963186,1709305850279,-519.60436828,0.00021917,2]
[315963187,1709305850288,-844.86,0.00021917,2]
[315963188,1709305850298,-1873.71,0.00021917,2]
[315963189,1709305850307,-500.0,0.00021917,2]
[315963190,1709305850317,-500.0,0.00021917,2]
[315963191,1709305850332,-500.0,0.00021917,2]
[315963192,1709305850342,-1094.87,0.00021917,2]
[315963193,1709305850352,-1348.78,0.00021917,2]
[315963194,1709305850362,-543.71,0.00021917,2]
[315963195,1709305850372,-500.0,0.00021917,2]
[315963196,1709305850382,-517.7,0.00021917,2]
[315963197,1709305850391,-1253.26,0.00021917,2]
[315963198,1709305850401,-829.71,0.00021917,2]
[315963199,1709305850410,-1978.87,0.00021917,2]
[315963200,1709305850420,-500.0,0.00021917,2]
[315963201,1709305850430,-500.0,0.00021917,2]
[315963202,1709305850440,-500.0,0.00021917,2]
[315963203,1709305850449,-5780.97,0.00021917,2]
[315963204,1709305850458,-500.0,0.00021917,2]
[315963205,1709305850467,-1128.32,0.00021917,2]
[315963206,1709305850477,-900.35,0.00021917,2]
[315963207,1709305850487,-595.79,0.00021917,2]
[315963208,1709305850497,-1360.34,0.00021917,2]
[315963209,1709305850507,-500.0,0.00021917,2]
[315963210,1709305850516,-503.67,0.00021917,2]
[315963211,1709305850526,-543.27,0.00021917,2]
[315963212,1709305850536,-500.0,0.00021917,2]
[315963213,1709305850546,-500.0,0.00021917,2]
[315963214,1709305850556,-500.0,0.00021917,2]
[315963215,1709305850566,-531.22544602,0.00021917,2]
[315963216,1709305850576,-426.34703771,0.00021917,2]
[315963217,1709305850587,-655.83,0.00021917,2]
[315963218,1709305850598,-500.0,0.00021917,2]
[315963219,1709305850609,-540.91,0.00021917,2]
[315963220,1709305850619,-500.0,0.00021917,2]
[315963221,1709305850629,-758.75,0.00021917,2]
[315963222,1709305850640,-1186.06,0.00021917,2]
[315963223,1709305850650,-500.0,0.00021917,2]
[315963224,1709305850660,-500.0,0.00021917,2]
[315963225,1709305850669,-500.0,0.00021917,2]
[315963226,1709305850679,-1195.58,0.00021917,2]
[315963227,1709305850692,-817.92,0.00021917,2]
[315963228,1709305850701,-500.0,0.00021917,2]
[315963229,1709305850711,-1397.92,0.00021917,2]
[315963230,1709305850720,-947.48,0.00021917,2]
[315963231,1709305850730,-500.0,0.00021917,2]
[315963232,1709305850740,-889.25,0.00021917,2]
[315963233,1709305850749,-500.0,0.00021917,2]
[315963234,1709305850759,-558.86,0.00021917,2]
[315963235,1709305850768,-654.16,0.00021917,2]
[315963236,1709305850778,-500.0,0.00021917,2]
[315963237,1709305850787,-508.24,0.00021917,2]
[315963238,1709305850797,-928.68,0.00021917,2]
[315963239,1709305850806,-886.02,0.00021917,2]
[315963240,1709305850816,-1331.87,0.00021917,2]
[315963241,1709305850826,-500.0,0.00021917,2]
[315963242,1709305850835,-500.0,0.00021917,2]
[315963243,1709305850845,-500.0,0.00021917,2]
[315963244,1709305850855,-523.37008997,0.00021917,2]
[315963245,1709305850866,-500.0,0.00021917,2]
[315963246,1709305850876,-2216.85,0.00021917,2]
[315963247,1709305850886,-1288.14,0.00021917,2]
[315963248,1709305850895,-1254.88,0.00021917,2]
[315963249,1709305850904,-500.0,0.00021917,2]
[315963250,1709305850914,-782.75,0.00021917,2]
[315963251,1709305850924,-161.78604016,0.00021917,2]
[315963252,1709305850933,-500.0,0.00021917,2]
[315963253,1709305850943,-500.0,0.00021917,2]
[315963254,1709305850952,-641.49,0.00021917,2]
[315963255,1709305850962,-1350.32,0.00021917,2]
[315963256,1709305850971,-985.98,0.00021917,2]
[315963257,1709305850981,-500.0,0.00021917,2]
[315963258,1709305850992,-510.00326812,0.00021917,2]
[315963259,1709305851001,-1905.1,0.00021917,2]
[315963260,1709305851011,-500.0,0.00021917,2]
[315963261,1709305851020,-1197.98,0.00021917,2]
[315963262,1709305851030,-500.0,0.00021917,2]
[315963263,1709305851040,-500.0,0.00021917,2]
[315963264,1709305851049,-500.0,0.00021917,2]
[315963265,1709305851059,-500.0,0.00021917,2]
[315963266,1709305851068,-1184.73,0.00021917,2]
[315963267,1709305851078,-500.0,0.00021917,2]
[315963268,1709305851090,-500.0,0.00021917,2]
[315963269,1709305851100,-934.94,0.00021917,2]
[315963270,1709305851109,-540.58,0.00021917,2]
[315963271,1709305851119,-512.29062482,0.00021917,2]
[315963272,1709305851128,-500.0,0.00021917,2]
[315963273,1709305851138,-500.0,0.00021917,2]
[315963274,1709305851148,-500.0,0.00021917,2]
[315963275,1709305851157,-3329.36,0.00021917,2]
[315963276,1709305851166,-500.0,0.00021917,2]
[315963277,1709305851176,-500.0,0.00021917,2]
[315963278,1709305851186,-500.0,0.00021917,2]
[315963279,1709305851196,-500.0,0.00021917,2]
[315963280,1709305851206,-500.0,0.00021917,2]
[315963281,1709305851216,-500.0,0.00021917,2]
[315963282,1709305851226,-1905.59,0.00021917,2]
[315963283,1709305851238,-638.39367371,0.00021917,2]
[315963284,1709305851248,-500.0,0.00021917,2]
[315963285,1709305851257,-526.84,0.00021917,2]
[315963286,1709305851267,-500.0,0.00021917,2]
[315963287,1709305851277,-500.0,0.00021917,2]
[315963288,1709305851287,-830.59,0.00021917,2]
[315963289,1709305851298,-505.16785215,0.00021917,2]
[315963290,1709305851308,-500.0,0.00021917,2]
[315963291,1709305851318,-555.78,0.00021917,2]
[315963292,1709305851328,-528.51,0.00021917,2]
[315963293,1709305851344,-505.11931575,0.00021917,2]
[315963294,1709305851354,-515.02968237,0.00021917,2]
[315963295,1709305851365,-500.0,0.00021917,2]
[315963296,1709305851375,-497.55028763,0.00021917,2]
[315963297,1709305851386,-1574.86,0.00021917,2]
[315963298,1709305851396,-1148.67,0.00021917,2]
[315963299,1709305851406,-924.56,0.00021917,2]
[315963300,1709305851416,-500.0,0.00021917,2]
[315963301,1709305851427,-500.0,0.00021917,2]
[315963302,1709305851438,-506.86526226,0.00021917,2]
[315963303,1709305851449,-504.18656238,0.00021917,2]
[315963304,1709305851459,-765.51,0.00021917,2]
[315963305,1709305851469,-1684.51,0.00021917,2]
[315963306,1709305851479,-508.07921271,0.00021917,2]
[315963307,1709305851493,-500.0,0.00021917,2]
[315963308,1709305851504,-604.09,0.00021917,2]
[315963309,1709305851515,-500.0,0.00021917,2]
[315963310,1709305851526,-504.30435733,0.00021917,2]
[315963311,1709305851536,-500.0,0.00021917,2]
[315963312,1709305851546,-878.61,0.00021917,2]
[315963313,1709305851556,-873.4,0.00021917,2]
[315963314,1709305851566,-847.29,0.00021917,2]
[315963315,1709305851575,-510.67212917,0.00021917,2]
[315963316,1709305851586,-272.52843357,0.00021917,2]
[315963317,1709305851596,-509.41819956,0.00021917,2]
[315963318,1709305851606,-983.47,0.00021917,2]
[315963319,1709305851615,-507.97803685,0.00021917,2]
[315963320,1709305851626,-500.0,0.00021917,2]
[315963321,1709305851636,-1114.24,0.00021917,2]
[315963322,1709305851646,-500.0,0.00021917,2]
[315963323,1709305851656,-500.0,0.00021917,2]
[315963324,1709305851666,-721.29,0.00021917,2]
[315963325,1709305851676,-1667.9,0.00021917,2]
[315963326,1709305851686,-500.0,0.00021917,2]
[315963327,1709305851696,-500.0,0.00021917,2]
[315963328,1709305851707,-1455.8,0.00021917,2]
[315963329,1709305851717,-500.0,0.00021917,2]
[315963330,1709305851728,-500.0,0.00021917,2]
[315963331,1709305851742,-500.0,0.00021917,2]
[315963332,1709305851752,-500.0,0.00021917,2]
[315963333,1709305851762,-500.0,0.00021917,2]
[315963334,1709305851772,-500.0,0.00021917,2]
[315963335,1709305851781,-500.0,0.00021917,2]
[315963336,1709305851791,-500.0,0.00021917,2]
[315963337,1709305851800,-631.77,0.00021917,2]
[315963338,1709305851810,-5562.59,0.00021917,2]
[315963339,1709305851819,-500.0,0.00021917,2]
[315963340,1709305851829,-500.0,0.00021917,2]
[315963341,1709305851838,-5893.85,0.00021917,2]
[315963342,1709305851848,-500.0,0.00021917,2]
[315963343,1709305851857,-2262.48,0.00021917,2]
[315963344,1709305851867,-500.0,0.00021917,2]
[315963345,1709305851876,-500.0,0.00021917,2]
[315963346,1709305851886,-506.63,0.00021917,2]
[315963347,1709305851896,-500.0,0.00021917,2]
[315963348,1709305851905,-500.0,0.00021917,2]
[315963349,1709305851915,-500.0,0.00021917,2]
[315963350,1709305851925,-500.0,0.00021917,2]
[315963351,1709305851934,-634.29,0.00021917,2]
[315963352,1709305851944,-501.89315654,0.00021917,2]
[315963353,1709305851953,-724.63,0.00021917,2]
[315963354,1709305851963,-500.0,0.00021917,2]
[315963355,1709305851972,-7099.15,0.00021917,2]
[315963356,1709305851982,-1628.31,0.00021917,2]
[315963357,1709305851994,-557.5,0.00021917,2]
[315963358,1709305852004,-500.0,0.00021917,2]
[315963359,1709305852013,-500.0,0.00021917,2]
[315963360,1709305852022,-500.0,0.00021917,2]
[315963361,1709305852033,-500.0,0.00021917,2]
[315963362,1709305852042,-900.57,0.00021917,2]
[315963363,1709305852052,-500.0,0.00021917,2]
[315963364,1709305852061,-1308.47,0.00021917,2]
[315963365,1709305852071,-500.0,0.00021917,2]
[315963366,1709305852081,-505.33218086,0.00021917,2]
[315963367,1709305852090,-500.0,0.00021917,2]
[315963368,1709305852100,-510.08,0.00021917,2]
[315963369,1709305852110,-5514.48,0.00021917,2]
[315963370,1709305852119,-500.0,0.00021917,2]
[315963371,1709305852129,-500.0,0.00021917,2]
[315963372,1709305852139,-500.0,0.00021917,2]
[315963373,1709305852149,-1979.13,0.00021917,2]
[315963374,1709305852158,-920.03,0.00021917,2]
[315963375,1709305852169,-1607.91,0.00021917,2]
[315963376,1709305852178,-1631.28,0.00021917,2]
[315963377,1709305852188,-500.0,0.00021917,2]
[315963378,1709305852198,-575.77926948,0.00021917,2]
[315963379,1709305852208,-500.0,0.00021917,2]
[315963380,1709305852219,-500.0,0.00021917,2]
[315963381,1709305852229,-500.0,0.00021917,2]
[315963382,1709305852242,-500.0,0.00021917,2]
[315963383,1709305852251,-691.36,0.00021917,2]
[315963384,1709305852261,-500.0,0.00021917,2]
[315963385,1709305852271,-506.75775727,0.00021917,2]
[315963386,1709305852281,-500.0,0.00021917,2]
[315963387,1709305852290,-500.0,0.00021917,2]
[315963388,1709305852300,-567.34,0.00021917,2]
[315963389,1709305852310,-500.0,0.00021917,2]
[315963390,1709305852320,-500.0,0.00021917,2]
[315963391,1709305852331,-2398.02,0.00021917,2]
[315963392,1709305852342,-500.0,0.00021917,2]
[315963393,1709305852352,-500.0,0.00021917,2]
[315963394,1709305852367,-800.0,0.00021918,2]
[315963395,1709305852377,-199.69,0.00021918,2]
[315963396,1709305852388,-204.92,0.00021918,2]
[315963397,1709305852398,-1500.0,0.00021918,3]
[315963398,1709305852407,-158.24,0.00021918,2]
[315963399,1709305852417,-195.26,0.00021918,2]
[315963400,1709305852428,-162.71,0.00021918,2]
[315963401,1709305852437,-813.59,0.00021918,2]
[315963402,1709305852447,-375.31,0.00021918,2]
[315963403,1709305852457,-311.0,0.00021921,2]
[315963404,1709305852466,-888.0,0.00021921,2]
[315963405,1709305852477,-1497.68771694,0.00021927,5]
[315963406,1709305852489,-7184.35764856,0.00021936,2]
[315963407,1709305852499,-500.0,0.00021999,2]
[315963408,1709305852508,-500.0,0.00021999,2]
[315963409,1709305852518,-10000.0,0.00022,2]
[315963410,1709305852529,-165.0,0.00022,2]
[315963411,1709305852539,-250.0,0.00022,2]
[315963412,1709305852549,-150.0,0.00022,2]
[315963413,1709305852559,-150.0,0.00022,2]
[315963414,1709305852570,-6146.48967779,0.00022,2]
[315963415,1709305852580,-297.93996961,0.00022,2]
[315963416,1709305852591,-488496.74,0.00022,2]
[315963417,1709305852601,-8740.02413078,0.00022,2]
[315963418,1709305852611,-400.0,0.00022,3]
[315963419,1709305852621,-165.0,0.00022,2]
[315963420,1709305852631,-9012.99,0.00022,2]
[315963421,1709305852640,-643.33870642,0.00022017,2]
[315963422,1709305852651,-249.10988376,0.00022022,2]
[315963423,1709305852661,-500.0,0.00022026,2]
[315963424,1709305852671,-500.0,0.00022026,2]
[315963425,1709305852681,-500.0,0.00022027,2]
[315963426,1709305852691,-500.0,0.00022027,2]
[315963427,1709305852701,-500.0,0.00022027,2]
[315963428,1709305852710,-511.35633208,0.00022027,2]
[315963429,1709305852720,-500.0,0.00022027,2]
[315963430,1709305852729,-500.0,0.00022027,2]
[315963431,1709305852740,-508.48414561,0.00022027,2]
[315963432,1709305852749,-500.0,0.00022027,2]
[315963433,1709305852759,-500.0,0.00022027,2]
[315963434,1709305852768,-519.819805,0.00022027,2]
[315963435,1709305852778,-500.0,0.00022027,2]
[315963436,1709305852787,-500.0,0.00022027,2]
[315963437,1709305852797,-514.41988453,0.00022027,2]
[315963438,1709305852807,-500.0,0.00022027,2]
[315963439,1709305852816,-500.0,0.00022027,2]
[315963440,1709305852826,-500.0,0.00022027,2]
[315963441,1709305852836,-513.6787433,0.00022027,2]
[315963442,1709305852845,-500.0,0.00022027,2]
[315963443,1709305852855,-500.0,0.00022027,2]
[315963444,1709305852865,-500.0,0.00022027,2]
[315963445,1709305852874,-500.0,0.00022027,2]
[315963446,1709305852885,-500.0,0.00022027,2]